bitfinex/quotes_SOLUSD_20220105
["timestamp","ask_amount","ask_price","bid_price","bid_amount"]
[1641379643722,3.56126659,170.26,170.17,23.5136]
[1641379643919,3.56126659,170.26,170.17,25.49206154]
[1641379644122,3.56126659,170.26,170.17,25.75206154]
[1641379644324,2.71166936,170.25,170.18,1.47846154]
[1641379644625,0.5,170.26,170.18,1.73846154]
[1641379644824,5.31383916,170.29,170.18,2.23846154]
[1641379645025,0.5,170.29,170.18,2.29846154]
[1641379645224,0.5,170.29,170.19,1.47846154]
[1641379645437,12.12126659,170.31,170.19,1.97846154]
[1641379645725,2.56327482,170.3,170.19,2.23846154]
[1641379645929,2.56327482,170.3,170.19,25.46726154]
[1641379646126,2.56327482,170.3,170.2,1.47846154]
[1641379646329,2.56327482,170.3,170.2,1.97846154]
[1641379646527,2.56327482,170.3,170.2,2.23846154]
[1641379646727,2.56327482,170.3,170.21,1.47846154]
[1641379646929,2.56327482,170.3,170.21,1.97846154]
[1641379647132,2.56327482,170.3,170.21,2.23846154]
[1641379647931,2.56327482,170.3,170.22,1.47846154]
[1641379648131,2.56327482,170.3,170.21,0.76]
[1641379648331,2.56327482,170.3,170.19,24.0488]
[1641379648731,2.56327482,170.3,170.21,0.06]
[1641379648931,2.56327482,170.3,170.21,8.62]
[1641379649531,2.56327482,170.3,170.21,9.38]
[1641379650435,2.56327482,170.3,170.23,26.28147685]
[1641379650839,2.56327482,170.3,170.23,27.04147685]
[1641379651034,24.1318,170.35,170.23,27.04147685]
[1641379651237,101.26,170.36,170.24,22.7154]
[1641379651436,92.7,170.36,170.24,23.2154]
[1641379651636,92.7,170.36,170.24,24.95386154]
[1641379651838,92.7,170.36,170.24,25.01386154]
[1641379652038,106.99846154,170.39,170.25,1.47846154]
[1641379652243,2.74476684,170.35,170.25,74.07706154]
[1641379652440,2.74476684,170.35,170.26,0.06]
[1641379652839,3.24476684,170.35,170.26,0.06]
[1641379653639,3.24476684,170.35,170.27,8.56]
[1641379653838,3.24476684,170.35,170.27,9.06]
[1641379654044,3.24476684,170.35,170.27,9.32]
[1641379654240,73.1311,170.39,170.27,9.38]
[1641379654441,73.6311,170.39,170.27,9.38]
[1641379655140,2.52530523,170.38,170.28,22.6626]
[1641379655340,3.02530523,170.38,170.28,31.7226]
[1641379655542,3.02530523,170.38,170.28,31.9826]
[1641379656242,2.52530523,170.38,170.28,31.9826]
[1641379656545,92.7,170.43,170.29,0.06]
[1641379656745,92.7,170.43,170.31,30.72278271]
[1641379656942,92.7,170.43,170.32,8.56]
[1641379657144,0.84019005,170.42,170.33,0.06]
[1641379657345,0.84019005,170.42,170.34,8.56]
[1641379657542,0.84019005,170.42,170.35,0.06]
[1641379657745,0.84019005,170.42,170.36,8.56]
[1641379657968,0.84019005,170.42,170.36,9.06]
[1641379659169,0.84019005,170.42,170.36,9.32]
[1641379661068,0.84019005,170.42,170.37,0.06]
[1641379661268,0.84019005,170.42,170.37,8.62]
[1641379661467,0.84019005,170.42,170.38,30.5868029]
[1641379661669,0.84019005,170.42,170.39,8.56]
[1641379661869,0.84019005,170.42,170.39,9.12]
[1641379662069,83.08516659,170.51,170.39,9.12]
[1641379662070,3.06126659,170.51,170.41,0.06]
[1641379662270,2.43380571,170.5,170.42,8.56]
[1641379662472,2.43380571,170.5,170.42,9.32]
[1641379662670,2.43380571,170.5,170.43,0.06]
[1641379664771,2.43380571,170.5,170.44,8.56]
[1641379664974,2.43380571,170.5,170.44,8.82]
[1641379665372,2.43380571,170.5,170.44,9.32]
[1641379665574,2.43380571,170.5,170.45,30.32653616]
[1641379665786,2.43380571,170.5,170.45,38.88653616]
[1641379665973,79.6181,170.56,170.45,39.14653616]
[1641379666274,80.1181,170.56,170.45,39.64653616]
[1641379666973,2.52487537,170.55,170.45,39.64653616]
[1641379667380,3.02487537,170.55,170.45,39.64653616]
[1641379667774,0.5,170.55,170.45,39.64653616]
[1641379667973,0.5,170.55,170.46,24.4515]
[1641379668173,77.03766659,170.6,170.47,8.56]
[1641379668373,73.9764,170.6,170.47,9.06]
[1641379668673,73.9764,170.6,170.47,9.32]
[1641379668873,2.36655177,170.59,170.48,24.733]
[1641379669074,2.36655177,170.59,170.48,24.993]
[1641379669273,2.86655177,170.59,170.48,25.493]
[1641379669673,2.86655177,170.59,170.48,0.26]
[1641379669873,4.34501331,170.59,170.47,8.56]
[1641379670874,2.86655177,170.59,170.47,39.94095658]
[1641379671274,2.86655177,170.59,170.47,8.56]
[1641379671673,1.47846154,170.58,170.47,8.56]
[1641379671875,1.97846154,170.58,170.47,8.56]
[1641379672474,0.5,170.58,170.47,8.82]
[1641379672982,2.86655177,170.59,170.47,8.82]
[1641379674378,2.86655177,170.59,170.47,8.84]
[1641379675279,2.86655177,170.59,170.47,8.58]
[1641379676783,2.86655177,170.59,170.47,8.84]
[1641379678985,2.86655177,170.59,170.47,8.58]
[1641379679186,1.47846154,170.58,170.47,0.02]
[1641379679485,2.23846154,170.58,170.47,0.02]
[1641379679986,1.47846154,170.57,170.47,0.02]
[1641379680385,1.97846154,170.57,170.47,0.02]
[1641379680986,1.47846154,170.56,170.47,0.02]
[1641379681188,10.03846154,170.56,170.47,0.02]
[1641379681387,10.79846154,170.56,170.37,8.56]
[1641379681588,24.03326154,170.55,170.37,8.56]
[1641379681792,2.67534968,170.53,170.37,8.56]
[1641379681991,104.50174968,170.53,170.37,8.56]
[1641379682188,104.74174968,170.53,170.38,22.60345631]
[1641379682388,1.47846154,170.52,170.38,22.60345631]
[1641379682789,1.97846154,170.52,170.38,22.60345631]
[1641379682989,2.23846154,170.52,170.38,22.86345631]
[1641379683192,1.47846154,170.51,170.38,22.86345631]
[1641379683388,1.97846154,170.51,170.38,22.86345631]
[1641379683590,0.5,170.51,170.38,22.86345631]
[1641379683791,0.76,170.51,170.38,22.86345631]
[1641379684191,8.82,170.51,170.38,22.60345631]
[1641379684391,10.53846154,170.51,170.38,22.60345631]
[1641379684591,10.79846154,170.51,170.38,22.60345631]
[1641379685692,9.06,170.51,170.38,22.86345631]
[1641379686492,9.06,170.51,170.38,46.19885631]
[1641379686698,10.53846154,170.51,170.38,22.60345631]
[1641379687294,10.79846154,170.51,170.38,22.60345631]
[1641379687496,10.79846154,170.51,170.38,22.54345631]
[1641379688497,34.71536154,170.51,170.38,22.80345631]
[1641379689296,34.45536154,170.51,170.38,22.80345631]
[1641379689699,34.45536154,170.51,170.38,22.54345631]
[1641379690401,1.65972903,170.5,170.38,22.54345631]
[1641379690596,8.56,170.49,170.38,22.54345631]
[1641379690998,9.06,170.49,170.38,22.80345631]
[1641379692026,9.32,170.49,170.38,22.80345631]
[1641379693329,10.79846154,170.49,170.38,0.26]
[1641379693625,2.44483591,170.47,170.34,8.82]
[1641379693826,2.94483591,170.47,170.34,9.32]
[1641379694025,3.20483591,170.47,170.34,9.32]
[1641379694225,2.94483591,170.47,170.34,9.32]
[1641379694425,2.94483591,170.47,170.35,54.3370067]
[1641379694626,2.94483591,170.47,170.35,54.3970067]
[1641379694830,2.94483591,170.47,170.35,55.1570067]
[1641379697129,3.20483591,170.47,170.35,55.1570067]
[1641379697528,2.94483591,170.47,170.35,55.1570067]
[1641379698230,2.94483591,170.47,170.35,63.6570067]
[1641379698830,3.20483591,170.47,170.35,63.6570067]
[1641379699233,2.94483591,170.47,170.35,63.3970067]
[1641379699631,3.20483591,170.47,170.35,63.3970067]
[1641379699831,2.94483591,170.47,170.35,63.3970067]
[1641379700034,3.20483591,170.47,170.35,63.3970067]
[1641379700535,1.65972903,170.46,170.35,63.6570067]
[1641379700935,2.15972903,170.46,170.35,63.6570067]
[1641379702335,2.15972903,170.46,170.36,0.06]
[1641379702937,0.5,170.46,170.36,0.06]
[1641379703336,4.60456494,170.47,170.36,0.06]
[1641379703538,2.94483591,170.47,170.36,1.53846154]
[1641379703736,2.94483591,170.47,170.37,8.56]
[1641379703937,2.94483591,170.47,170.38,0.06]
[1641379704136,2.94483591,170.47,170.38,8.62]
[1641379704337,2.94483591,170.47,170.38,10.59846154]
[1641379704538,2.94483591,170.47,170.39,23.7527]
[1641379704939,2.94483591,170.47,170.39,24.5127]
[1641379705739,2.94483591,170.47,170.4,8.56]
[1641379705939,2.94483591,170.47,170.4,9.06]
[1641379706140,2.94483591,170.47,170.4,9.32]
[1641379706841,2.94483591,170.47,170.4,9.06]
[1641379707139,2.94483591,170.47,170.4,8.56]
[1641379708542,2.94483591,170.47,170.4,8.82]
[1641379711040,4.60456494,170.47,170.4,8.82]
[1641379712443,2.94483591,170.47,170.4,8.82]
[1641379714444,2.94483591,170.47,170.4,9.38]
[1641379714945,1.65972903,170.48,170.4,9.38]
[1641379715145,1.65972903,170.48,170.42,26.62494496]
[1641379715547,1.65972903,170.48,170.42,0.32]
[1641379715947,3.00158167,170.48,170.42,0.06]
[1641379716347,3.50158167,170.48,170.42,0.06]
[1641379716550,5.1613107,170.48,170.42,0.06]
[1641379718149,2.15972903,170.48,170.42,0.06]
[1641379721256,0.5,170.48,170.42,0.06]
[1641379721456,2.7512222,170.5,170.42,0.06]
[1641379725888,2.7512222,170.5,170.41,22.3987]
[1641379728292,1.65972903,170.49,170.41,22.3987]
[1641379728692,2.15972903,170.49,170.41,22.3987]
[1641379729294,2.15972903,170.49,170.41,22.1387]
[1641379730592,2.15972903,170.49,170.41,22.3987]
[1641379730798,2.15972903,170.49,170.41,21.8987]
[1641379731994,0.5,170.49,170.41,21.8987]
[1641379732396,4.41095123,170.5,170.41,21.8987]
[1641379733497,2.15972903,170.5,170.41,27.9197]
[1641379733996,0.5,170.5,170.41,27.9197]
[1641379734197,1.65972903,170.51,170.42,8.56]
[1641379734401,1.65972903,170.51,170.43,22.71]
[1641379734597,1.65972903,170.51,170.44,8.56]
[1641379734799,1.65972903,170.51,170.44,8.06]
[1641379734999,1.65972903,170.51,170.44,8.82]
[1641379735701,4.11517441,170.52,170.44,8.82]
[1641379737300,1.65972903,170.52,170.44,8.56]
[1641379737701,1.65972903,170.52,170.44,10.03846154]
[1641379738501,1.65972903,170.52,170.44,17.00846154]
[1641379738703,1.65972903,170.53,170.44,16.50846154]
[1641379738901,2.15972903,170.53,170.44,16.50846154]
[1641379739303,0.5,170.53,170.44,16.50846154]
[1641379739505,4.92980954,170.56,170.44,16.50846154]
[1641379742303,4.92980954,170.56,170.44,15.03]
[1641379742505,4.92980954,170.56,170.44,8.32]
[1641379743303,1.65972903,170.55,170.44,8.32]
[1641379743704,2.15972903,170.55,170.44,8.06]
[1641379744305,0.5,170.55,170.44,8.06]
[1641379744711,3.27008051,170.56,170.44,8.06]
[1641379745109,3.27008051,170.56,170.44,8.32]
[1641379745308,3.27008051,170.56,170.44,9.79846154]
[1641379747812,3.27008051,170.56,170.44,8.32]
[1641379748613,3.27008051,170.56,170.44,9.79846154]
[1641379748813,3.27008051,170.56,170.46,25.79682698]
[1641379749013,3.27008051,170.56,170.47,31.5481]
[1641379749416,3.27008051,170.56,170.47,31.8081]
[1641379749818,3.27008051,170.56,170.47,32.3081]
[1641379751420,1.65972903,170.55,170.47,32.3081]
[1641379751843,2.15972903,170.55,170.47,32.3081]
[1641379752844,2.15972903,170.55,170.47,32.0481]
[1641379753944,2.15972903,170.55,170.47,32.3081]
[1641379754746,1.65972903,170.54,170.47,32.3081]
[1641379754947,2.15972903,170.54,170.47,32.3081]
[1641379756948,0.5,170.54,170.47,32.3081]
[1641379757350,2.15972903,170.55,170.47,32.3081]
[1641379760455,0.5,170.55,170.47,32.3081]
[1641379760859,4.92980954,170.56,170.47,32.3081]
[1641379761662,4.92980954,170.56,170.47,31.5481]
[1641379761958,1.65972903,170.54,170.47,31.5481]
[1641379762158,1.65972903,170.54,170.47,8.56]
[1641379762360,1.65972903,170.53,170.47,8.56]
[1641379762759,2.15972903,170.53,170.45,31.87227342]
[1641379762961,2.15972903,170.53,170.45,32.13227342]
[1641379763161,2.15972903,170.53,170.45,32.63227342]
[1641379764161,0.5,170.53,170.45,32.63227342]
[1641379764362,2.15972903,170.55,170.45,32.63227342]
[1641379764762,2.15972903,170.55,170.46,23.9078]
[1641379764962,2.15972903,170.55,170.46,24.1678]
[1641379770769,1.65972903,170.54,170.41,83.4968]
[1641379770968,17.73272903,170.54,170.42,23.4267]
[1641379771164,1.65972903,170.53,170.42,23.4267]
[1641379771365,2.15972903,170.53,170.39,8.56]
[1641379771565,26.42112903,170.53,170.4,23.6032]
[1641379771766,1.65972903,170.53,170.43,106.98]
[1641379771966,1.65972903,170.53,170.44,31.9636]
[1641379772366,75.5338,170.55,170.44,33.94206154]
[1641379772568,75.5338,170.55,170.44,34.20206154]
[1641379772770,3.05644749,170.57,170.45,1.47846154]
[1641379772972,3.05644749,170.57,170.46,8.56]
[1641379773372,3.05644749,170.57,170.46,9.32]
[1641379773576,3.05644749,170.57,170.47,23.6962]
[1641379773775,3.05644749,170.57,170.48,8.56]
[1641379773975,3.05644749,170.57,170.49,24.4353]
[1641379774180,3.05644749,170.57,170.5,8.56]
[1641379774580,3.05644749,170.57,170.5,8.82]
[1641379775880,3.05644749,170.57,170.51,1.47846154]
[1641379776083,3.05644749,170.57,170.51,1.73846154]
[1641379776282,3.05644749,170.57,170.51,0.26]
[1641379776683,3.05644749,170.57,170.49,24.6953]
[1641379777786,3.05644749,170.57,170.49,25.1953]
[1641379778002,3.05644749,170.57,170.49,24.6953]
[1641379778203,3.05644749,170.57,170.49,25.1953]
[1641379778407,3.05644749,170.57,170.49,24.6953]
[1641379779903,3.05644749,170.57,170.49,25.1953]
[1641379781404,77.8265,170.6,170.49,24.9353]
[1641379781606,78.3265,170.6,170.49,24.9353]
[1641379781806,78.3265,170.6,170.49,0.5]
[1641379782308,78.3265,170.6,170.48,40.7114797]
[1641379782509,2.1881575,170.59,170.48,40.7114797]
[1641379783411,2.1881575,170.59,170.49,23.8523]
[1641379783612,2.1881575,170.59,170.5,8.56]
[1641379784014,2.1881575,170.59,170.5,9.32]
[1641379785715,2.1881575,170.59,170.51,24.6029]
[1641379785918,2.1881575,170.59,170.52,8.56]
[1641379786316,2.1881575,170.59,170.52,8.82]
[1641379788225,2.1881575,170.59,170.52,8.56]
[1641379788820,2.6881575,170.59,170.52,8.56]
[1641379789523,2.6881575,170.59,170.52,8.82]
[1641379790120,2.1881575,170.59,170.52,8.82]
[1641379791520,2.1881575,170.59,170.52,8.56]
[1641379793023,2.1881575,170.59,170.52,8.82]
[1641379793429,2.1881575,170.59,170.52,8.56]
[1641379794824,2.1881575,170.59,170.52,8.82]
[1641379795829,2.6881575,170.59,170.52,0.26]
[1641379796027,2.9481575,170.59,170.48,8.56]
[1641379796327,3.0081575,170.59,170.48,8.56]
[1641379798357,1.65972903,170.58,170.48,8.56]
[1641379798756,2.15972903,170.58,170.48,8.56]
[1641379799063,2.15972903,170.58,170.48,8.82]
[1641379799657,0.5,170.58,170.48,8.82]
[1641379799858,4.34788653,170.59,170.48,8.82]
[1641379800557,4.60788653,170.59,170.48,8.82]
[1641379801160,1.65972903,170.58,170.48,8.82]
[1641379801358,2.15972903,170.58,170.48,8.56]
[1641379801559,2.41972903,170.58,170.48,8.56]
[1641379801959,2.15972903,170.58,170.48,8.56]
[1641379802762,2.15972903,170.58,170.42,79.3766]
[1641379802763,2.15972903,170.58,170.44,8.56]
[1641379802962,24.95652903,170.58,170.44,8.56]
[1641379803163,25.21652903,170.58,170.44,8.56]
[1641379803362,1.65972903,170.57,170.44,8.56]
[1641379803564,0.06,170.56,170.44,8.56]
[1641379804363,2.23438128,170.53,170.44,8.56]
[1641379804564,2.49438128,170.53,170.44,8.82]
[1641379804763,2.99438128,170.53,170.44,8.82]
[1641379806173,2.99438128,170.53,170.44,8.56]
[1641379806368,2.99438128,170.53,170.43,22.9776]
[1641379806969,2.99438128,170.53,170.4,8.56]
[1641379807370,13.21411031,170.53,170.38,23.0488]
[1641379807579,22.7025,170.52,170.38,23.0488]
[1641379807973,23.4625,170.52,170.38,23.0488]
[1641379808170,25.12222903,170.52,170.38,23.0488]
[1641379808872,25.18222903,170.52,170.38,23.0488]
[1641379809271,1.65972903,170.51,170.38,23.0488]
[1641379809472,2.41972903,170.51,170.38,23.0488]
[1641379809771,1.65972903,170.5,170.38,23.0488]
[1641379809971,2.41972903,170.5,170.38,23.3088]
[1641379810872,2.41972903,170.5,170.38,23.8088]
[1641379811671,2.15972903,170.5,170.38,23.8088]
[1641379811874,2.15972903,170.5,170.38,23.3088]
[1641379812271,2.15972903,170.5,170.39,8.56]
[1641379812472,1.65972903,170.5,170.41,31.53770472]
[1641379812674,22.7025,170.52,170.42,23.4608]
[1641379812874,23.2025,170.52,170.42,23.4608]
[1641379813073,23.2025,170.52,170.42,23.7208]
[1641379813276,23.2025,170.52,170.42,25.19926154]
[1641379813773,23.2025,170.52,170.42,23.7208]
[1641379815373,23.2025,170.52,170.42,23.4608]
[1641379815574,23.2025,170.52,170.41,31.53770472]
[1641379815785,23.4625,170.52,170.39,8.56]
[1641379816074,23.4625,170.52,170.4,23.0507]
[1641379816780,24.86222903,170.52,170.41,31.27861953]
[1641379816980,24.86222903,170.52,170.41,39.83861953]
[1641379817176,24.86222903,170.52,170.42,23.5069]
[1641379817375,23.2025,170.52,170.42,23.5069]
[1641379817579,23.2025,170.52,170.42,23.7669]
[1641379819883,22.7025,170.52,170.42,23.7669]
[1641379820081,22.7025,170.52,170.42,24.2669]
[1641379820380,22.7025,170.52,170.43,8.56]
[1641379820881,22.7025,170.52,170.44,24.3034]
[1641379821083,22.7025,170.52,170.44,33.1234]
[1641379826708,22.7025,170.52,170.44,32.8634]
[1641379827209,23.2025,170.52,170.44,32.8634]
[1641379827611,23.2025,170.52,170.44,24.3034]
[1641379828009,23.2025,170.52,170.44,24.5634]
[1641379828912,22.7025,170.52,170.44,24.5634]
[1641379829513,23.2025,170.52,170.44,24.5634]
[1641379835318,23.2025,170.52,170.44,24.3034]
[1641379837019,23.2025,170.52,170.44,24.5634]
[1641379838021,23.2025,170.52,170.44,24.3034]
[1641379840024,23.2025,170.52,170.44,24.5634]
[1641379841724,23.2025,170.52,170.44,24.3034]
[1641379842023,23.4625,170.52,170.44,24.3034]
[1641379842925,23.2025,170.52,170.44,24.3034]
[1641379843124,0.5,170.52,170.44,24.5634]
[1641379843524,2.73438128,170.53,170.44,24.5634]
[1641379844625,2.73438128,170.53,170.41,8.56]
[1641379844826,2.99438128,170.53,170.41,8.56]
[1641379845731,2.73438128,170.53,170.41,8.56]
[1641379845930,2.73438128,170.53,170.42,24.7978]
[1641379846144,2.99438128,170.53,170.42,24.7978]
[1641379846329,2.99438128,170.53,170.42,25.0578]
[1641379847031,2.73438128,170.53,170.42,25.0578]
[1641379848631,2.73438128,170.53,170.42,33.6178]
[1641379848831,2.73438128,170.53,170.42,35.59626154]
[1641379849462,2.73438128,170.53,170.42,34.1178]
[1641379849661,2.73438128,170.53,170.42,33.8578]
[1641379850962,2.73438128,170.53,170.42,34.1178]
[1641379852163,2.23438128,170.53,170.42,34.1178]
[1641379852363,2.73438128,170.53,170.42,35.59626154]
[1641379852563,2.23438128,170.53,170.42,35.59626154]
[1641379852766,2.73438128,170.53,170.42,34.1178]
[1641379852963,78.18022903,170.55,170.42,34.1178]
[1641379853164,0.5,170.53,170.42,35.59626154]
[1641379853765,77.0205,170.55,170.42,35.59626154]
[1641379853966,2.7690956,170.54,170.42,35.59626154]
[1641379854364,3.2690956,170.54,170.42,35.59626154]
[1641379855367,3.2690956,170.54,170.42,34.1178]
[1641379855565,26.6209956,170.54,170.42,34.1178]
[1641379855766,26.8809956,170.54,170.42,34.1178]
[1641379856468,26.6209956,170.54,170.42,34.1178]
[1641379856668,28.28072463,170.54,170.42,34.1178]
[1641379857066,28.54072463,170.54,170.42,34.1178]
[1641379857970,28.54072463,170.54,170.42,33.6178]
[1641379858170,28.54072463,170.54,170.42,34.1178]
[1641379860073,28.28072463,170.54,170.42,34.1178]
[1641379861275,26.6209956,170.54,170.42,34.1178]
[1641379863874,26.6209956,170.54,170.42,35.59626154]
[1641379865278,23.8519,170.54,170.42,35.59626154]
[1641379865680,0.5,170.54,170.42,42.19726154]
[1641379865883,1.65972903,170.57,170.42,42.19726154]
[1641379866487,3.80685311,170.57,170.42,42.19726154]
[1641379866681,2.14712408,170.57,170.42,42.19726154]
[1641379866880,92.7,170.59,170.42,50.99376154]
[1641379867083,92.7,170.59,170.43,106.98]
[1641379867284,92.7,170.59,170.44,8.56]
[1641379867481,92.7,170.59,170.45,24.4358]
[1641379867680,92.7,170.59,170.46,8.56]
[1641379867909,2.44959082,170.58,170.48,25.41533049]
[1641379868087,2.44959082,170.58,170.49,8.56]
[1641379868385,92.7,170.59,170.5,23.299]
[1641379868581,92.7,170.59,170.5,31.859]
[1641379868786,92.7,170.59,170.5,32.619]
[1641379869482,2.2624595,170.58,170.5,32.619]
[1641379869683,92.7,170.59,170.5,32.619]
[1641379869883,92.7,170.59,170.5,40.52246154]
[1641379870283,22.5565,170.64,170.5,40.52246154]
[1641379870484,22.6141,170.63,170.5,40.52246154]
[1641379870685,2.788817,170.62,170.5,40.52246154]
[1641379870883,0.5,170.62,170.5,40.52246154]
[1641379871087,1.65972903,170.67,170.5,40.52246154]
[1641379871885,2.79262884,170.66,170.5,40.52246154]
[1641379872286,3.29262884,170.66,170.5,40.52246154]
[1641379876716,3.29262884,170.66,170.5,34.09746154]
[1641379878621,2.79262884,170.66,170.5,34.09746154]
[1641379881723,2.79262884,170.66,170.5,141.07746154]
[1641379884623,2.79262884,170.66,170.5,150.43379738]
[1641379885424,2.79262884,170.66,170.5,150.17379738]
[1641379886829,2.79262884,170.66,170.5,150.43379738]
[1641379890530,4.27109038,170.66,170.5,150.17379738]
[1641379890732,5.03109038,170.66,170.5,148.69533584]
[1641379891332,4.77109038,170.66,170.5,148.69533584]
[1641379891533,3.29262884,170.66,170.5,148.69533584]
[1641379891933,2.79262884,170.66,170.5,148.95533584]
[1641379892132,2.79262884,170.66,170.51,1.47846154]
[1641379892334,3.29262884,170.66,170.52,8.56]
[1641379892531,3.29262884,170.66,170.53,23.5402]
[1641379892731,3.29262884,170.66,170.54,8.56]
[1641379892933,3.29262884,170.66,170.55,50.97815851]
[1641379893132,3.29262884,170.66,170.56,8.56]
[1641379893335,3.29262884,170.66,170.57,22.5695]
[1641379893632,3.29262884,170.66,170.57,22.8295]
[1641379895035,4.77109038,170.66,170.57,22.8295]
[1641379898942,4.77109038,170.66,170.57,0.26]
[1641379899443,4.77109038,170.66,170.56,8.82]
[1641379901445,4.77109038,170.66,170.56,32.9099]
[1641379901870,4.77109038,170.66,170.56,33.1499]
[1641379903170,4.77109038,170.66,170.56,33.4099]
[1641379903370,4.77109038,170.66,170.56,32.9099]
[1641379904171,4.77109038,170.66,170.56,32.6499]
[1641379904373,5.03109038,170.66,170.56,32.6499]
[1641379904771,5.03109038,170.66,170.53,8.56]
[1641379905570,5.09109038,170.66,170.53,8.56]
[1641379906371,5.09109038,170.66,170.53,8.82]
[1641379908072,5.09109038,170.66,170.53,32.0388]
[1641379910681,1.65972903,170.65,170.53,32.0388]
[1641379910880,2.15972903,170.65,170.53,32.0388]
[1641379911081,0.06,170.64,170.48,8.56]
[1641379911283,8.56,170.63,170.48,8.56]
[1641379911480,23.862,170.62,170.48,8.56]
[1641379911682,32.422,170.62,170.48,8.56]
[1641379911880,34.66046154,170.62,170.48,8.56]
[1641379912081,1.47846154,170.61,170.48,8.56]
[1641379912280,2.5670897,170.6,170.48,8.56]
[1641379912480,25.9856897,170.6,170.48,8.56]
[1641379912680,1.47846154,170.59,170.48,8.56]
[1641379912882,1.97846154,170.59,170.48,8.56]
[1641379913079,2.23846154,170.59,170.48,8.56]
[1641379913282,1.97846154,170.59,170.48,8.56]
[1641379913480,1.97846154,170.59,170.48,8.82]
[1641379914482,0.5,170.59,170.48,8.82]
[1641379914682,25.7256897,170.6,170.48,8.82]
[1641379914883,25.9856897,170.6,170.49,24.5263]
[1641379915086,25.9856897,170.6,170.49,24.7863]
[1641379915285,25.7256897,170.6,170.49,24.7863]
[1641379915488,25.7256897,170.6,170.49,25.2863]
[1641379917588,25.7256897,170.6,170.49,0.5]
[1641379917787,25.7256897,170.6,170.48,9.06]
[1641379917985,26.2256897,170.6,170.48,9.06]
[1641379918188,25.7256897,170.6,170.48,9.06]
[1641379918687,25.7256897,170.6,170.49,23.1615]
[1641379918887,25.7256897,170.6,170.49,23.6615]
[1641379919086,25.7256897,170.6,170.49,23.9215]
[1641379921492,25.9856897,170.6,170.49,23.9215]
[1641379921694,25.7256897,170.6,170.49,23.9215]
[1641379922393,26.4856897,170.6,170.49,23.9215]
[1641379922596,26.4856897,170.6,170.49,23.4215]
[1641379922792,26.4856897,170.6,170.49,23.9215]
[1641379924394,26.2256897,170.6,170.49,23.9215]
[1641379925596,23.6586,170.6,170.49,23.9215]
[1641379925799,23.1586,170.6,170.5,10.03846154]
[1641379925997,23.1586,170.6,170.5,8.82]
[1641379926197,23.1586,170.6,170.5,9.32]
[1641379926599,2.57762191,170.59,170.51,23.6369]
[1641379927000,2.57762191,170.59,170.51,24.3969]
[1641379932432,23.1586,170.6,170.51,31.4969]
[1641379935533,23.1586,170.6,170.51,40.0569]
[1641379936836,23.1586,170.6,170.51,39.7969]
[1641379937034,2.90424192,170.62,170.51,39.7969]
[1641379938241,2.90424192,170.62,170.51,40.0569]
[1641379940244,2.90424192,170.62,170.51,32.6969]
[1641379940444,2.90424192,170.62,170.51,32.1969]
[1641379940445,3.40424192,170.62,170.51,32.1969]
[1641379941143,3.40424192,170.62,170.51,32.6969]
[1641379942440,2.90424192,170.62,170.51,32.6969]
[1641379942841,2.90424192,170.62,170.51,32.9569]
[1641379946044,2.78265318,170.63,170.53,22.86666139]
[1641379946246,2.78265318,170.63,170.54,22.6586]
[1641379946444,3.28265318,170.63,170.54,23.1586]
[1641379946670,3.28265318,170.63,170.54,23.4186]
[1641379946950,3.28265318,170.63,170.54,22.9186]
[1641379947147,3.28265318,170.63,170.54,23.4186]
[1641379951953,4.76111472,170.63,170.54,22.6586]
[1641379952952,5.02111472,170.63,170.54,22.6586]
[1641379954776,5.02111472,170.63,170.54,22.9186]
[1641379954977,4.76111472,170.63,170.54,22.9186]
[1641379956280,2.78265318,170.63,170.54,22.9186]
[1641379956781,2.78265318,170.63,170.54,23.4186]
[1641379957379,3.28265318,170.63,170.54,23.4186]
[1641379960687,3.28265318,170.63,170.54,22.9186]